[Event "FIDE Candidates 2026"]
[Site "Pegeia, Cyprus"]
[Date "2026.04.11"]
[Round "11.4"]
[White "Praggnanandhaa R"]
[Black "Bluebaum, Matthias"]
[Result "1/2-1/2"]
[ECO "C42"]
[WhiteElo "2741"]
[BlackElo "2698"]
[Annotator "Crowther, Mark"]
[PlyCount "83"]
[EventDate "2026.??.??"]
[TimeControl "40/7200:1800+30"]

{[%evp 0,83,18,18,18,18,50,-2,14,6,34,4,1,13,7,20,43,-32,15,9,14,1,5,9,29,31,25,13,13,18,21,20,62,19,-12,-26,-5,-39,10,10,14,35,35,35,65,42,77,28,38,-4,37,-17,-2,25,21,21,34,34,34,-30,26,-62,-48,-44,0,0,0,0,0,-56,-67,-174,-95,-140,-140,-140,-91,-195,-91,-195,-191,-195,-181,0,0,-181]} 1. e4 e5 2. Nf3 Nf6 3. Nxe5 d6 4. Nd3 (4. Nf3 {Curiously, nobody has played the main move against Bluebaum's Petroff in this tournament.}) (4. Nc4 {has also been tried in this event.}) 4... Nxe4 5. Nc3 Nf6 ({RR} 5... Nxc3 6. dxc3 Be7 7. Be3 O-O 8. Qd2 Be6 9. O-O-O Nc6 10. Nf4 Bf5 11. g4 Bg6 12. f3 Ne5 13. Be2 b5 14. h4 Bxh4 15. Nxg6 Nxg6 16. f4 Re8 17. Bf3 Rb8 18. Bc6 Rf8 19. Bxa7 Bg3 20. Rdf1 {Mirzaliyeva,L (1762)-Vidruska,R (2050) chess.com INT 2026 1-0}) 6. Nf4 d5 ({RR} 6... c6 7. d4 d5 8. Bd3 Bd6 9. Qe2+ Qe7 10. Qxe7+ Kxe7 11. f3 Nbd7 12. Kf2 Nf8 13. Nce2 Bd7 14. h4 Re8 15. g4 h6 16. Bd2 Ne6 17. Nxe6 Bxe6 18. Nf4 Kd8 19. g5 Ng8 20. Nh5 Bf8 21. Rae1 {Mamedyarov,S (2817)-Yu,Y (2764) Chess.com INT 2019 ½-½ (90)}) 7. d4 Be7 8. Qf3 $146 ({RR} 8. Be3 c6 9. Bd3 Na6 10. a3 Nc7 11. f3 c5 12. b3 b6 13. O-O O-O 14. Qd2 Re8 15. Rfe1 Bd6 16. Bf2 Ne6 17. Nfxd5 Nxd5 18. Nxd5 cxd4 19. c4 dxc3 20. Nxc3 Ba6 21. Nd5 Bxd3 22. Qxd3 Bc5 {Dzagnidze,N (2510)-Tan,Z (2513) Kazan 2019 ½-½ (32)}) 8... c6 9. Bd3 O-O 10. h3 Na6 $6 (10... Nbd7 {Considering White's move in the game, this was an improvement.} 11. O-O Re8 {The knight goes to f8 and, as they say, \"there is no mate.\"} 12. Nce2 Nf8) 11. Bxa6 $1 bxa6 12. Nd3 a5 13. O-O Ba6 14. Re1 Re8 $2 (14... Bxd3 $1 {It was time to chop of this knight, before it gets to e5.}) 15. Bg5 $2 (15. Ne5 $1 {immediately was strongest, but we will see this move in the game.}) 15... Qb6 $2 {[%eval 168,16] [%wdl 962,38,0]} (15... Bxd3 $14 {[%eval 47,19] [%wdl 74,925,1] Again had to be played.} 16. Qxd3 Qc7) 16. Ne5 $1 $18 Rac8 (16... Bc8 {was a move suggested by Nepomniachtchi on the FIDE broadcast, intending the solid ...Be6. But Black is not in time.} 17. Nxf7 $1 Kxf7 18. Bxf6 Bxf6 19. Qh5+ {White wins.} g6 20. Qxh7+ Bg7 21. Rxe8) (16... Qxd4 17. Nxc6 {wins a piece.}) 17. Re3 {White already has a winning advantage.} Qxd4 18. Rae1 $2 {[%eval 37,19] [%wdl 46,953,1] A natural move and one that lets the advantage slip.} (18. Qf5 $1 $18 {[%eval 181,20] [%wdl 980,20,0] was the only winning move.} h6 19. Rd1 $1 (19. Bf4) 19... Qb4 20. Bxh6 $1 gxh6 (20... Qh4 {This was the saving move in the game, but here the queen on f5 allows} 21. Bg5) 21. Rg3+ {with a mating attack.}) 18... h6 $14 (18... Qb4 {allows us to show a beautiful queen sacrifice.} 19. Bxf6 Bxf6 20. Qxf6 $3 gxf6 21. Rg3+ Kf8 22. Nd7#) 19. Nd7 (19. Bxh6 Qh4 $1 {is the point that Bluebaum found. And if} 20. Bf4 $2 (20. Ng4 {is a bailout.} Nxg4 21. Qxg4 Qxh6 22. Rxe7) 20... d4 {wins.}) 19... Nxd7 20. Rxe7 Rxe7 21. Rxe7 Ne5 22. Qe3 Qb4 23. Qxe5 hxg5 24. b3 (24. Qxg5 $6 Qxb2 25. Qd2 Ra8 $15) (24. Rxa7 $5 Bb7 25. Ne2 $11 (25. Qxg5 $2 Qb6 $19)) 24... Rf8 25. Rc7 Qb6 {Until now, with lower time, Bluebaum has defended very well. We will skip to the potentially decisive moment.} 26. Na4 $40 Qb5 {[%eval 92,18] [%wdl 377,623,0]} (26... Qb4 $14 {[%eval 32,20] [%wdl 13,987,0]}) 27. Kh2 Qb4 28. c3 Qa3 29. Rxa7 Bb5 30. Nb6 Qxa2 $2 {[%eval 106,18] [%wdl 594,406,0]} (30... Qc5 $1 $11 {[%eval 14,23] [%wdl 4,995,1] The queen has to stay connected to the game, hitting the knight on b6 and the pawn on f2.} 31. Qe3 Qxe3 32. fxe3 Rb8) 31. Qe3 $1 $16 Qxb3 {[%eval 203,16] [%wdl 999,1,0]} (31... d4 $1 $16 {[%eval 107,20] [%wdl 606,394,0]} 32. Qxd4 (32. cxd4 Qe2) 32... Qxb3 {was best, again connecting the queen back into the game.} 33. Rxa5 {But White is still better. The threat is c4 and potentially going after the g5-pawn.}) 32. Nd7 $1 $18 Rc8 33. Ne5 $1 Re8 $2 {[%eval 459,16] [%wdl 1000,0,0] White is winning, but he's unable to find the finishing blow with just five minutes left for six moves.} (33... d4 $16 {[%eval 126,23] [%wdl 842,158,0]} 34. Qxg5 Bc4 (34... dxc3 $2 35. Nxf7 Qxf7 36. Rxf7 $18)) 34. Qf3 $2 {[%eval 0,47] [%wdl 1,997,2]} (34. Rxf7 $1 {wins.} Rxe5 {Removing the rook's defender.} 35. Qa7 {This is the point you have to see. The game just ends here.}) (34. Qxg5 {was the move Judit polgar suggested, and it does win.} Qxc3 35. f4 {But 34.Rxf7 is much, much cleaner.}) 34... d4 $1 $11 35. Nxf7 Rf8 36. Nh6+ gxh6 37. Qe4 Bd3 $1 {Bluebaum is just in time to defend.} 38. Qe5 (38. Qxd3 $4 Qb8+ {wins the rook.}) 38... Rf7 39. Ra8+ Rf8 40. Ra7 Rf7 41. Ra8+ Rf8 42. Ra7 {Praggnanandhaa, several pawns down, has to agree to the draw.} 1/2-1/2

[Event "FIDE Candidates 2026"]
[Site "Pegeia, Cyprus"]
[Date "2026.04.14"]
[Round "13.1"]
[White "Wei, Yi"]
[Black "Esipenko, Andrey"]
[Result "1-0"]
[ECO "C42"]
[WhiteElo "2754"]
[BlackElo "2698"]
[Annotator "Crowther,Mark"]
[PlyCount "91"]
[EventDate "2026.??.??"]
[TimeControl "40/7200:1800+30"]

{[%evp 0,91,28,18,18,18,50,14,33,35,35,-37,-4,-11,16,-51,-17,6,59,6,62,57,43,30,21,13,15,8,51,42,28,63,88,44,76,25,22,30,51,52,166,166,116,40,40,40,40,29,76,29,29,44,44,59,73,36,32,-46,-19,0,0,0,0,0,0,0,0,0,0,-26,-19,0,0,0,0,0,0,-35,17,40,87,41,26,37,56,95,94,141,87,138,138,92,181,172]} 1. e4 e5 2. Nf3 Nf6 3. Nxe5 d6 4. Nf3 Nxe4 5. c4 Be7 6. d4 d5 7. Bd3 $1 Bb4+ (7... Bf5 8. O-O dxc4 9. Bxc4 O-O 10. Re1 Nd6 11. Bd5 Na6 12. a3 c6 13. Bb3 Nc7 14. Nc3 Ndb5 15. Nxb5 Nxb5 16. d5 Bg4 17. dxc6 Bxf3 18. gxf3 bxc6 19. Be3 Bf6 20. Rc1 Bxb2 21. Rxc6 Nd4 22. Rc4 Nxb3 23. Qxb3 Qa5 24. Rb1 Bf6 25. Rc5 Qa6 26. Rc7 Be5 27. Rb7 Qg6+ 28. Kf1 Bxh2 29. Rd1 Rab8 30. Rdd7 Rxb7 31. Qxb7 h5 32. Bxa7 h4 33. Qe4 Qxe4 34. fxe4 Be5 35. Kg2 g5 36. Be3 g4 37. Bd4 {1-0 Vachier Lagrave,M (2732)-Duda,J (2732) Titled Tuesday intern op 06th Feb Late Chess.com INT blitz 2024 (7)}) 8. Kf1 {Wei had played this once, against Yu Yangyi, in 2017.} c6 {[#]} ({RR} 8... O-O 9. a3 Be7 10. cxd5 Nf6 11. Nc3 Nbd7 12. h4 Nb6 13. Bg5 Nfxd5 14. Qc2 h6 15. Re1 Re8 16. Ne5 Bxg5 17. hxg5 Qxg5 18. Bh7+ Kf8 19. Nxd5 Nxd5 20. Qc5+ Ne7 21. Re3 Bf5 22. Rh5 Qxh5 23. Nd7+ {Wei,Y (2738)-Yu,Y (2753) Danzhou 2017 1-0 (64)}) ({RR} 8... Be7 9. cxd5 Nf6 10. Nc3 Nxd5 11. Qb3 Nxc3 12. bxc3 Nd7 13. Qc2 h6 14. Bf4 Nf6 15. Re1 O-O 16. h4 Nd5 17. Bd2 c6 18. Ng5 f5 19. Ne6 Bxe6 20. Rxe6 f4 21. Bc4 Qd7 22. Qe4 Rae8 23. Re5 {Ciric,P (2280)-Skomial,M (2100) Thessaloniki GRE 2026 0-1 (37)}) 9. Qc2 $146 {Wei Yi criticized his own move and didn't like his position.} ({RR} 9. Qb3 {is the main move.} Be7 10. cxd5 Nf6 11. Nc3 O-O 12. Bg5 {½-½ Mamedov,R (2680)-Kuzubov,Y (2646) TUR-chT Kocaeli 2017 (10.5)} cxd5 13. Bxf6 Bxf6 14. Nxd5 Nc6 15. Nxf6+ Qxf6 16. d5 Ne7 17. Rd1 Rd8 18. Be4 Nf5 19. h3 Nd6 20. Bb1 Bd7 21. Kg1 Bb5 22. Bd3 Bxd3 23. Rxd3 Rac8 {Mamedov,R (2680)-Kuzubov,Y (2646) Kocaeli 2017 ½-½ (37)} 24. Kh2 Ne4 25. Rd4 Ng5 26. Rhd1 Nxf3+ 27. gxf3 Qd6+ 28. Kg2 b6 29. Re4 h6 30. Qe3 Kh7 31. Qe2 Rc5 32. Red4 Qg6+ 33. Kh2 Rc2 34. R1d2 Rc1 35. Rd1 Rc2 36. R1d2 Rc1 37. Rd1 Rc2 {½-½ Mamedov,R (2680)-Kuzubov,Y (2646) TUR-chT Kocaeli 2017 (10.5)}) 9... O-O 10. a3 Ba5 {Keeping an eye on the c3-square.} 11. Bf4 Nd7 12. Nc3 {Allowing Black to show why he put the bishop on a5.} Bxc3 13. bxc3 Qa5 {[%eval 15,21] [%wdl 18,978,4]} (13... Re8 {[%eval -21,18] [%wdl 3,974,23]}) 14. cxd5 $11 cxd5 15. c4 b6 16. Nd2 ({Esipenko spent time looking at this move, and he showed some lines.} 16. Ng5 Ndf6 (16... Nxg5 17. Bd2 $1 Qa6 {And the queen is badly placed.}) 17. f3 Nxg5 18. Bd2 dxc4 19. Bxa5 cxd3 20. Qd2 {The engine actually shows this line, and Esipenko calculated it. He didn't like this for Black, though the engine only gives White a slight edge.} Ne6) 16... f5 17. Kg1 Bb7 18. f3 {[%eval 1,19] [%wdl 7,986,7]} (18. h4 $14 {[%eval 42,19] [%wdl 53,946,1]}) 18... Rac8 {[%eval 52,17] [%wdl 84,915,1]} (18... g5 {Esipenko mentioned this as an option, and he should have played it. White prevents it on the next move.}) (18... Ndc5 {In this position, the computer shows that this is possible. The obvious point is that White cannot take the knight.} 19. dxc5 $4 Qxc5+ 20. Kf1 Qf2#) 19. h4 $1 $14 (19. fxe4 fxe4 20. Bxe4 Rxf4 $15 (20... dxe4 $2 21. Be3 $19)) 19... Ndc5 $2 {[%eval 130,16] [%wdl 814,186,0] \"Everything is out of control,\" said Wei about this position. The good news is that the sacrifice is unsound.} (19... h6) (19... Ba6) 20. dxc5 $2 $16 {This doesn't work.} Qxc5+ 21. Kh2 Qf2 22. Kh3 $1 {Everything else is at least equal for black.} (22. Nxe4 Qxh4+ 23. Kg1 Qxf4 $15) 22... Qd4 23. Bxe4 $1 {This is the move Esipenko missed from afar, when he sacrificed his knight.} (23. Rhf1 $2 {Wei Yi showed that this move wasn't possible. Black is better after} Nc5) (23. fxe4 $2 fxe4 {Black hits both bishops. This is perhaps why Esipenko thought his knight was secure on e4.} 24. Bxe4 Rxf4 $14) 23... fxe4 24. Bg3 e3 25. Nb3 Qf6 26. c5 Ba6 27. Rac1 $1 bxc5 28. Qd1 $6 {[%eval 18,23] [%wdl 7,992,1] Black has fought his way back into the game but blunders again.} (28. Nxc5 $1 $16 {[%eval 133,18] [%wdl 875,125,0]} Bc4 {Both players didn't see any continuation for White here, but the computer shows} 29. Nb7 $3 d4 30. Qe4 Rce8 {The players thought Black was even better here, but after another brilliant move} 31. Qb1 $1 {White is winning, though to a human eye the connected pawns still look a bit dangerous $1}) 28... Bc4 $2 {[%eval 62,20] [%wdl 93,907,0]} (28... d4 $1 $11 {[%eval 18,23] [%wdl 7,992,1] had to be played.} 29. Nxc5 Qf5+ (29... d3 30. Qb3+ (30. Nxd3 Qf5+ 31. Kh2 Qxd3 $11) 30... Kh8 31. Nxa6 (31. Nxd3 Qf5+ 32. Kh2 Qxd3 $14) 31... Qxa6) 30. Kh2 $16 Rxc5 31. Qxd4 {Esipenko did not like this position, but the computer shows equality after} Rfc8 32. Qxe3 {Even here, Esipenko thought White was clearly better.} (32. Rxc5 Qxc5 33. Qe4 $11)) (28... Qf5+ 29. Kh2 d4 30. Nxd4 cxd4 31. Qxd4 {is also playable.}) 29. Na5 $14 Qe6+ 30. Kh2 Ba6 31. Nb3 Bc4 32. Na5 Ba6 33. Nb3 Bc4 34. Re1 $1 Rfe8 {[%eval 176,17] [%wdl 989,11,0]} (34... h6 $16 {[%eval 99,18] [%wdl 483,517,0]}) 35. Na5 $1 $18 Ba6 36. Nb3 Bc4 37. Na5 Ba6 38. Qa4 Red8 {[%eval 206,15] [%wdl 998,2,0]} (38... c4 39. Rcd1 {Black has given up the dark squares.}) (38... Qb6 {[%eval 166,18] [%wdl 981,19,0]}) 39. Nb3 Bc4 40. Na5 Ba6 {Both players make time control and it's +2 advantage for white according to the engine evaluation.} 41. Nb3 Bc4 42. Rc3 e2 {[%eval 293,21] [%wdl 1000,0,0] After this, Black loses the pawn.} ({Wei calculated some incredible lines here.} 42... Bxb3 {[%eval 180,19] [%wdl 992,8,0]} 43. Qxb3 c4 44. Rcxe3 cxb3 45. Rxe6 d4 46. R6e2 Rc2 ({He also showed} 46... d3 47. Rb2 d2 48. Rd1 Rc2 49. Rxb3 Rc1 50. Rxd2 Rxd2 51. Bf4 {He had calculated all of this. White wins.}) 47. Rxc2 bxc2 48. Bf4 d3 49. Bd2 Rb8 50. Kg3 (50. Rc1 Rb7) 50... Rb1 {Wei thought this was unclear, but White has an only winning move.} 51. Rc1 {And the king approaches the pawns, decisively.}) 43. Nc1 (43. Qxa7 d4 44. Nxc5 Rxc5 45. Qxc5 dxc3 $17) 43... Qa6 44. Qc2 (44. Qxa6 Bxa6 45. Nxe2 d4 $16) 44... Re8 45. Nd3 Qf6 46. Rxe2 {White is up a piece and the black initiative has run out of steam.} (46. Rxc4 dxc4 47. Qxc4+ Kh8 $14) 1-0

[Event "FIDE Candidates 2026"]
[Site "Pegeia, Cyprus"]
[Date "2026.04.14"]
[Round "13.2"]
[White "Giri, Anish"]
[Black "Sindarov, Javokhir"]
[Result "1/2-1/2"]
[ECO "D35"]
[WhiteElo "2753"]
[BlackElo "2745"]
[Annotator "Crowther,Mark"]
[PlyCount "116"]
[EventDate "2026.??.??"]
[TimeControl "40/7200:1800+30"]

{[%evp 0,116,28,25,25,4,10,10,12,22,22,19,22,16,22,19,58,33,36,36,69,57,62,49,55,63,56,18,20,18,40,32,29,19,7,43,26,27,16,22,40,29,44,53,18,21,21,16,21,22,26,34,34,0,0,0,14,0,18,27,35,38,38,36,26,30,29,29,82,19,16,0,0,0,-6,0,0,0,0,0,0,0,0,-1,0,0,0,-16,0,-3,0,0,0,0,0,9,34,34,97,32,32,31,30,30,21,40,40,40,26,20,20,19,19,13,19,13,16,16,16]} 1. d4 d5 2. c4 e6 3. Nc3 Be7 4. cxd5 exd5 5. Bf4 Nf6 6. e3 O-O 7. Bd3 c5 8. Nge2 Nc6 9. O-O Bg4 (9... cxd4 10. exd4 Bd6 11. Qd2 Re8 12. Ng3 Bxf4 13. Qxf4 Be6 14. Rad1 Qb8 15. Nge2 Qxf4 16. Nxf4 Rad8 17. h4 h6 18. f3 g5 19. hxg5 hxg5 20. Nfe2 Kg7 21. Kf2 Rh8 22. Rh1 Rxh1 23. Rxh1 Rh8 24. Rxh8 Kxh8 25. a3 Kg7 26. Ke3 Ne8 27. f4 f6 28. f5 Bf7 29. g4 Nd6 30. b3 Kf8 31. Nc1 Ke7 32. Be2 Ne8 33. Bf3 Nc7 34. N1e2 Kd6 35. Kd3 Ne7 36. Ng3 Be8 37. Kd2 Nb5 38. Nxb5+ Bxb5 39. Be2 {½-½ Lazavik,D (2605)-Carlsen,M (2840) London SpeedChess Final blitz 2026 (1.18)}) 10. dxc5 Bxc5 11. h3 Bxe2 12. Nxe2 d4 {White is a little bit better, nothing more, but black will have to be precise.} ({RR} 12... Bd6 13. Qb3 Bxf4 14. Nxf4 Qd6 15. Rfd1 Rfd8 16. Rac1 Rab8 17. Bb5 Ne7 18. Be2 b6 19. Bf3 Qe5 20. Qc3 Qxc3 21. Rxc3 Rd7 22. g4 g5 23. Ne2 Rc8 24. Rdc1 Rxc3 25. Rxc3 Kf8 26. Nd4 Ke8 27. Be2 {Maghsoodloo,P (2720)-Rustemov,A (2525) chess.com INT 2026 ½-½ (58)}) 13. e4 {[#]} (13. Rc1 $5 Bb6 14. e4) 13... Re8 $146 ({RR} 13... Nd7 14. a3 (14. Rc1 a5 15. a3 Qb6 16. Qd2 a4 17. Ng3 Rac8 18. Rc2 Nce5 19. Bxe5 Nxe5 20. Rfc1 Rc6 21. f4 Nxd3 22. Qxd3 Rfc8 23. Kf1 Qb3 24. Ke2 b6 25. Qxb3 axb3 26. Rd2 g6 27. Kf3 Be7 28. Rxc6 {Mammadzada,G (2412)-Huseynova,L (2032) Baku AZE 2025 0-1 (34) Mammadzada,G (2412)-Huseynova,L (2032) Baku 2025 0-1 (34)}) 14... Re8 15. Rc1 Rc8 16. b4 Bf8 17. Bb1 {½-½ David,A (2528)-Mastrovasilis,A (2497) Paphos op 1st 2023 (5)} a5 18. Nxd4 axb4 19. axb4 Nxb4 20. Rxc8 Qxc8 21. Nf5 Ne5 22. Qb3 Qe6 23. Qg3 Nbc6 24. Rd1 Ng6 25. Bc7 b5 26. h4 Nge5 27. h5 g6 28. Rd5 {David,A (2528)-Mastrovasilis,A (2497) Paphos CYP 2023 ½-½ (31)} Nc4 29. hxg6 hxg6 30. Bd3 Nb4 31. Bxc4 {½-½ David,A (2528)-Mastrovasilis,A (2497) Paphos op 1st 2023 (5)}) 14. Ng3 Nd7 {Sindarov said his preparation ended somewhere around here, where he started to think on his own.} 15. a3 (15. Bc4 {is preferred by the engines.} Qf6 16. Bd2 d3 17. Bc3) 15... Nde5 {Black is getting closer to equality.} (15... Bf8 {is also roughly the same.}) 16. Bxe5 (16. Bb1 d3 17. Ba2 Qh4 18. Qc1) 16... Nxe5 17. f4 Nxd3 18. Qxd3 Qb6 $1 $11 {Going for the queen trade.} 19. e5 Qa6 (19... Qxb2 {is also about equal.} 20. Ne4 Qb6 21. Rab1 Qc6 22. Nxc5 (22. Rfc1 b6) 22... Qxc5) 20. Qxa6 $6 {After this move, Sindarov said he felt no pressure. Black is quite equal here.} (20. Qf3 {was the move Sindarov suggested to keep some attacking chances. was Sindarov's suggestion at keeping things complicated.} d3+ 21. Kh1 Rad8 22. Rad1 d2 {This is equal.}) (20. Rad1) 20... bxa6 21. Ne4 Bb6 22. Nd6 Re6 23. Nc4 f6 24. Rad1 fxe5 25. fxe5 Rd8 26. Rf4 d3+ 27. Kf1 Bc7 28. Re4 (28. Rf3 {Sindarov showed the following line as \"the maximum\" White could get, which is still a draw.} Bxe5 29. Rfxd3 Rxd3 30. Rxd3 Bc7 31. Kf2 (31. Rd7 {allows} Bg3) 31... Kf7 32. Rd7+ Re7) 28... Rd5 29. Kf2 Bxe5 30. Rxe5 Rexe5 31. Nxe5 Rxe5 32. Rxd3 $11 {This endgame is equal but white is the one who will be trying.} Rb5 33. b3 Kf7 34. a4 Rb7 35. Ke2 Ke6 36. Re3+ Kd6 37. Kd2 a5 38. Rg3 g6 39. Kc3 Rc7+ 40. Kb2 Rc5 41. h4 Re5 42. Rg4 Kc6 43. Rc4+ Kd6 44. g4 Re2+ 45. Ka3 {Black keeps white's King bottled in forever and that's enough to hold.} h6 46. Rd4+ Kc6 47. Rf4 Rh2 48. g5 hxg5 49. Rf6+ Kb7 50. hxg5 Rg2 51. Rxg6 {White can't make progress from here. Any b4 is met by Rg3+ and then axb4. The g pawn is controlled.} a6 52. Rg8 Ka7 53. Rg7+ Kb6 (53... Kb8 {is just as good and perhas even simpler.} 54. g6 Kc8 55. Rh7) 54. g6 Kc6 55. Ra7 Kb6 56. Rg7 Kc6 57. Ra7 {Nothing to be done now, white repeats for a draw.} Kb6 58. Rg7 Kc6 1/2-1/2